fUSD/lending_fUSD_20260226
["ID","MTS","AMOUNT","RATE_DAILY","PERIOD"]
[406732971,1772127045320,-200.0,0.00017041,2]
[406732973,1772127045329,-200.0,0.00017041,2]
[406732975,1772127045337,-200.0,0.00017041,2]
[406732977,1772127045347,-240.0,0.00017041,2]
[406732979,1772127045356,-800.0,0.00017041,2]
[406732981,1772127045365,-800.0,0.00017041,2]
[406732983,1772127045373,-800.0,0.00017041,2]
[406732985,1772127045383,-800.0,0.00017041,2]
[406732987,1772127045392,-800.0,0.00017041,2]
[406732989,1772127045407,-200.0,0.00017041,2]
[406732991,1772127045416,-200.0,0.00017041,2]
[406732993,1772127045425,-200.0,0.00017041,2]
[406732995,1772127045434,-150.0,0.00017085,2]
[406732997,1772127045443,-151.0,0.00017099,2]
[406732999,1772127045452,-693.3919763,0.00017099,2]
[406733001,1772127045461,-500.0,0.00017099,2]
[406733003,1772127045470,-500.0,0.00017099,2]
[406733005,1772127045479,-500.0,0.00017099,2]
[406733007,1772127045488,-500.0,0.00017099,2]
[406733009,1772127045497,-500.0,0.00017099,2]
[406733011,1772127045507,-500.0,0.00017099,2]
[406733013,1772127045516,-500.0,0.00017099,2]
[406733015,1772127045525,-500.0,0.00017099,2]
[406733017,1772127045533,-500.0,0.00017099,2]
[406733019,1772127045542,-373.19905658,0.00017099,2]
[406733021,1772127045551,-500.0,0.00017099,2]
[406733023,1772127045561,-500.0,0.00017099,2]
[406733025,1772127045571,-309.29654756,0.00017099,2]
[406733027,1772127045580,-20000.0,0.000171,2]
[406733029,1772127045589,-5436.70489032,0.000171,2]
[406733031,1772127045598,-719.04747942,0.00017154,2]
[406733033,1772127045607,-350.0,0.00017159,3]
[406733035,1772127045616,-335.0,0.00017172,2]
[406733037,1772127045625,-1277.0,0.00017173,2]
[406733039,1772127045635,-1211.0,0.00017173,2]
[406733041,1772127045643,-920.0,0.00017173,2]
[406733043,1772127045653,-618.0,0.00017173,2]
[406733045,1772127045663,-3498.0,0.00017173,2]
[406733047,1772127045676,-1340.0,0.00017173,2]
[406733049,1772127045686,-181.0,0.00017195,30]
[406733051,1772127045699,-1252.0,0.00017205,2]
[406733053,1772127045710,-1832.0,0.00017205,2]
[406733055,1772127045720,-745.65223616,0.00017209,2]
[406733058,1772127045729,-1000.0,0.00017219,2]
[406733060,1772127045741,-621.4,0.0001726,2]
[406733061,1772127045750,-1000.0,0.0001726,2]
[406733064,1772127045761,-995.28114407,0.00017262,2]
[406733066,1772127045771,-773.2413689,0.00017264,2]
[406733068,1772127045780,-801.85129955,0.00017319,2]
[406733070,1772127045789,-350.0,0.00017353,2]
[406733072,1772127045798,-553.0,0.00017358,2]
[406733074,1772127045807,-150.0,0.00017358,2]
[406733076,1772127045816,-150.0,0.00017358,2]
[406733078,1772127045825,-150.0,0.00017358,2]
[406733080,1772127045835,-150.0,0.00017358,2]
[406733082,1772127045844,-252.0,0.00017358,2]
[406733084,1772127045855,-560.0,0.00017374,2]
[406733086,1772127045864,-200.0,0.00017374,2]
[406733088,1772127045873,-200.0,0.00017374,2]
[406733089,1772127045883,-200.0,0.00017374,2]
[406733092,1772127045893,-200.0,0.00017374,2]
[406733094,1772127045904,-200.0,0.00017374,2]
[406733096,1772127045914,-200.0,0.00017374,2]
[406733098,1772127045923,-347.0,0.00017374,2]
[406733101,1772127045932,-239.0611416,0.00017385,2]
[406733103,1772127045941,-509.36,0.00017389,2]
[406733105,1772127045950,-2657.987487,0.00017441,7]
[406733107,1772127045959,-9816.775114,0.00017441,7]
[406733109,1772127045968,-553.32,0.0001749,2]
[406733111,1772127045977,-439.0,0.00017498,2]
[406733113,1772127045986,-400.0,0.000175,6]
[406733114,1772127045996,-1000.0,0.00017506,2]
[406733116,1772127046009,-439.0,0.00017523,2]
[406733119,1772127046018,-621.4,0.00017534,2]
[406733120,1772127046028,-1000.0,0.00017534,2]
[406733122,1772127046037,-400.0,0.000176,6]
[406733125,1772127046048,-529.0,0.00017644,2]
[406733127,1772127046059,-151.0,0.00017647,2]
[406733129,1772127046068,-150.0,0.00017654,2]
[406733131,1772127046078,-439.0,0.00017654,2]
[406733133,1772127046090,-2844.0,0.0001768,2]
[406733135,1772127046099,-439.0,0.00017682,2]
[406733137,1772127046110,-152.0,0.00017685,8]
[406733139,1772127046119,-400.0,0.000177,6]
[406733141,1772127046129,-500.0,0.00017726,7]
[406733143,1772127046138,-500.0,0.00017726,7]
[406733145,1772127046148,-700.0,0.00017726,7]
[406733147,1772127046157,-693.94657191,0.0001773,2]
[406733149,1772127046167,-26224.37597126,0.00017784,2]
[406733151,1772127046177,-400.0,0.000178,6]
[406733153,1772127046186,-500.0,0.00017808,2]
[406733155,1772127046195,-500.0,0.00017808,2]
[406733157,1772127046205,-500.0,0.00017808,2]
[406733159,1772127046214,-350.0,0.00017808,2]
[406733161,1772127046223,-604.90691511,0.00017808,2]
[406733163,1772127046232,-604.90691511,0.00017808,2]
[406733165,1772127046241,-604.90691511,0.00017808,2]
[406733167,1772127046250,-604.90691511,0.00017808,2]
[406733169,1772127046259,-604.90691511,0.00017808,2]
[406733171,1772127046269,-604.90691511,0.00017808,2]
[406733173,1772127046278,-604.90691512,0.00017808,2]
[406733176,1772127046287,-604.90691511,0.00017808,2]
[406733178,1772127046297,-604.90691511,0.00017808,2]
[406733180,1772127046308,-604.90691511,0.00017808,2]
[406733182,1772127046317,-604.90691511,0.00017808,2]
[406733184,1772127046326,-604.90691511,0.00017808,2]
[406733186,1772127046335,-604.90691511,0.00017808,2]
[406733188,1772127046344,-604.90691511,0.00017808,2]
[406733190,1772127046353,-604.90691511,0.00017808,2]
[406733192,1772127046362,-604.90691511,0.00017808,2]
[406733194,1772127046371,-657.8362702,0.00017808,2]
[406733196,1772127046380,-657.8362702,0.00017808,2]
[406733198,1772127046389,-657.8362702,0.00017808,2]
[406733200,1772127046399,-657.8362702,0.00017808,2]
[406733202,1772127046408,-657.8362702,0.00017808,2]
[406733204,1772127046417,-657.8362702,0.00017808,2]
[406733206,1772127046427,-657.8362702,0.00017808,2]
[406733208,1772127046436,-657.8362702,0.00017808,2]
[406733210,1772127046446,-621.4,0.00017808,2]
[406733212,1772127046455,-1000.0,0.00017808,2]
[406733214,1772127046464,-800.0,0.00017808,2]
[406733216,1772127046475,-439.0,0.00017809,2]
[406733218,1772127046484,-196.01868,0.0001782,2]
[406733220,1772127046493,-196.01868,0.0001782,2]
[406733222,1772127046502,-196.01868,0.0001782,2]
[406733224,1772127046511,-196.01868,0.0001782,2]
[406733226,1772127046520,-158.27050591,0.0001782,2]
[406733228,1772127046530,-350.0,0.00017821,3]
[406733230,1772127046539,-137550.62068451,0.0001783,2]
[406733243,1772127046642,-30763.77692973,0.00017834,2]
[406733245,1772127046651,-439.0,0.00017834,2]
[406733247,1772127046660,-500.0,0.00017863,2]
[406733249,1772127046670,-187.29970089,0.00017863,2]
[406733250,1772127046681,-150.0,0.00017863,2]
[406733252,1772127046689,-150.0,0.00017863,2]
[406733254,1772127046698,-150.0,0.00017863,2]
[406733256,1772127046708,-150.0,0.00017863,2]
[406733258,1772127046717,-150.0,0.00017863,2]
[406733260,1772127046726,-150.0,0.00017863,2]
[406733262,1772127046735,-339.21457322,0.00017863,2]
[406733264,1772127046746,-156.66979557,0.00017863,2]
[406733266,1772127046755,-150.0,0.00017863,2]
[406733268,1772127046765,-150.0,0.00017863,2]
[406733270,1772127046774,-150.0,0.00017863,2]
[406733272,1772127046783,-150.0,0.00017863,2]
[406733274,1772127046792,-150.0,0.00017863,2]
[406733276,1772127046802,-150.0,0.00017863,2]
[406733278,1772127046812,-187.29970089,0.00017864,2]
[406733280,1772127046821,-339.21457322,0.00017864,2]
[406733282,1772127046830,-156.66979557,0.00017864,2]
[406733284,1772127046839,-150.0,0.00017865,2]
[406733286,1772127046848,-150.0,0.00017865,2]
[406733288,1772127046857,-187.29970089,0.00017866,2]
[406733290,1772127046866,-339.21457322,0.00017866,2]
[406733292,1772127046875,-156.66979557,0.00017866,2]
[406733294,1772127046884,-1034.1174351,0.00017866,2]
[406733296,1772127046893,-150.0,0.00017866,2]
[406733298,1772127046901,-150.0,0.00017867,2]
[406733300,1772127046911,-150.0,0.00017867,2]
[406733302,1772127046920,-187.29970089,0.00017867,2]
[406733304,1772127046930,-339.21457322,0.00017867,2]
[406733306,1772127046939,-156.66979557,0.00017867,2]
[406733308,1772127046948,-150.0,0.00017867,2]
[406733310,1772127046958,-150.0,0.00017868,2]
[406733312,1772127046967,-187.29970089,0.00017869,2]
[406733314,1772127046976,-339.21457322,0.00017869,2]
[406733316,1772127046985,-156.66979557,0.00017869,2]
[406733318,1772127046994,-150.0,0.00017869,2]
[406733320,1772127047003,-150.0,0.00017869,2]
[406733322,1772127047012,-150.0,0.00017869,2]
[406733324,1772127047021,-150.0,0.00017869,2]
[406733326,1772127047030,-150.0,0.0001787,2]
[406733328,1772127047039,-187.29970089,0.0001787,2]
[406733330,1772127047047,-339.21457322,0.0001787,2]
[406733332,1772127047057,-156.66979557,0.0001787,2]
[406733334,1772127047066,-1079.8899031,0.00017871,2]
[406733336,1772127047075,-150.0,0.00017871,2]
[406733337,1772127047084,-150.0,0.00017871,2]
[406733338,1772127047092,-187.29970089,0.00017871,2]
[406733339,1772127047101,-339.21457322,0.00017871,2]
[406733340,1772127047110,-156.66979557,0.00017871,2]
[406733341,1772127047119,-150.0,0.00017871,2]
[406733342,1772127047127,-150.0,0.00017872,2]
[406733343,1772127047136,-187.29970089,0.00017873,2]
[406733344,1772127047145,-339.21457322,0.00017873,2]
[406733345,1772127047153,-156.66979557,0.00017873,2]
[406733346,1772127047163,-150.0,0.00017873,2]
[406733347,1772127047172,-150.0,0.00017873,2]
[406733348,1772127047181,-150.0,0.00017873,2]
[406733349,1772127047190,-187.29970089,0.00017874,2]
[406733350,1772127047199,-339.21457322,0.00017874,2]
[406733351,1772127047214,-156.66979557,0.00017874,2]
[406733352,1772127047234,-150.0,0.00017875,2]
[406733355,1772127047251,-150.0,0.00017875,2]
[406733358,1772127047271,-150.0,0.00017875,2]
[406733361,1772127047287,-150.0,0.00017875,2]
[406733364,1772127047305,-187.29970089,0.00017875,2]
[406733367,1772127047323,-339.21457322,0.00017875,2]
[406733370,1772127047340,-156.66979557,0.00017875,2]
[406733372,1772127047359,-150.0,0.00017875,2]
[406733375,1772127047378,-150.0,0.00017877,2]
[406733379,1772127047397,-150.0,0.00017877,2]
[406733381,1772127047411,-187.29970089,0.00017877,2]
[406733384,1772127047428,-339.21457322,0.00017877,2]
[406733387,1772127047443,-156.66979557,0.00017877,2]
[406733389,1772127047456,-150.0,0.00017877,2]
[406733392,1772127047472,-150.0,0.00017877,2]
[406733394,1772127047486,-150.0,0.00017878,2]
[406733397,1772127047500,-187.29970089,0.00017878,2]
[406733400,1772127047515,-339.21457322,0.00017878,2]
[406733402,1772127047530,-156.66979557,0.00017878,2]
[406733405,1772127047544,-150.0,0.00017879,2]
[406733408,1772127047559,-150.0,0.00017879,2]
[406733410,1772127047574,-187.29970089,0.0001788,2]
[406733413,1772127047591,-339.21457322,0.0001788,2]
[406733415,1772127047606,-156.66979557,0.0001788,2]
[406733418,1772127047620,-150.0,0.0001788,2]
[406733421,1772127047635,-150.0,0.0001788,2]
[406733423,1772127047650,-150.0,0.00017881,2]
[406733426,1772127047668,-150.0,0.00017881,2]
[406733428,1772127047682,-187.29970089,0.00017881,2]
[406733431,1772127047696,-339.21457322,0.00017881,2]
[406733434,1772127047712,-156.66979557,0.00017881,2]
[406733436,1772127047725,-150.0,0.00017881,2]
[406733439,1772127047739,-150.0,0.00017882,2]
[406733441,1772127047755,-150.0,0.00017882,2]
[406733444,1772127047770,-187.29970089,0.00017882,2]
[406733446,1772127047784,-339.21457322,0.00017882,2]
[406733449,1772127047799,-156.66979557,0.00017882,2]
[406733452,1772127047813,-150.0,0.00017883,2]
[406733454,1772127047828,-150.0,0.00017883,2]
[406733457,1772127047842,-509.36,0.00017883,2]
[406733459,1772127047856,-509.36,0.00017883,2]
[406733462,1772127047870,-509.36,0.00017883,2]
[406733465,1772127047884,-150.0,0.00017883,2]
[406733467,1772127047898,-150.0,0.00017883,2]
[406733470,1772127047913,-150.0,0.00017884,2]
[406733472,1772127047927,-187.29970089,0.00017884,2]
[406733475,1772127047942,-339.21457322,0.00017884,2]
[406733477,1772127047956,-156.66979557,0.00017884,2]
[406733480,1772127047970,-150.0,0.00017884,2]
[406733483,1772127047984,-15418.3179703,0.00017884,2]
[406733485,1772127048000,-28730.2729,0.00017884,2]
[406733488,1772127048014,-407342.7980089,0.00017884,2]
[406733490,1772127048028,-128598.3644447,0.00017884,2]
[406733491,1772127048043,-4088.3687998,0.00017884,2]
[406733492,1772127048058,-64643.114025,0.00017884,2]
[406733493,1772127048072,-151.0,0.00017884,2]
[406733494,1772127048086,-151.0,0.00017884,2]
[406733495,1772127048102,-151.0,0.00017884,2]
[406733496,1772127048116,-151.0,0.00017884,2]
[406733497,1772127048126,-151.0,0.00017884,2]
[406733498,1772127048135,-181.386797,0.00017884,2]
[406733499,1772127048309,-181.386797,0.00017884,2]
[406733500,1772127048319,-181.386797,0.00017884,2]
[406733501,1772127048328,-181.386797,0.00017884,2]
[406733502,1772127048339,-187.29970089,0.00017885,2]
[406733503,1772127048348,-339.21457322,0.00017885,2]
[406733504,1772127048357,-156.66979557,0.00017885,2]
[406733505,1772127048367,-150.0,0.00017886,2]
[406733506,1772127048376,-150.0,0.00017886,2]
[406733507,1772127048385,-187.29970089,0.00017887,2]
[406733508,1772127048394,-339.21457322,0.00017887,2]
[406733509,1772127048402,-156.66979557,0.00017887,2]
[406733510,1772127048411,-150.0,0.00017887,2]
[406733511,1772127048420,-150.0,0.00017887,2]
[406733512,1772127048430,-150.0,0.00017887,2]
[406733513,1772127048439,-150.0,0.00017887,2]
[406733514,1772127048448,-150.0,0.00017887,2]
[406733515,1772127048457,-150.0,0.00017888,2]
[406733516,1772127048467,-187.29970089,0.00017888,2]
[406733517,1772127048476,-339.21457322,0.00017888,2]
[406733518,1772127048486,-156.66979557,0.00017888,2]
[406733519,1772127048495,-150.0,0.00017888,2]
[406733520,1772127048504,-187.29970089,0.00017889,2]
[406733521,1772127048513,-339.21457322,0.00017889,2]
[406733522,1772127048523,-156.66979557,0.00017889,2]
[406733523,1772127048532,-150.0,0.0001789,2]
[406733524,1772127048541,-150.0,0.0001789,2]
[406733525,1772127048551,-150.0,0.0001789,2]
[406733526,1772127048561,-150.0,0.0001789,2]
[406733527,1772127048572,-187.29970089,0.00017891,2]
[406733528,1772127048581,-339.21457322,0.00017891,2]
[406733529,1772127048590,-156.66979557,0.00017891,2]
[406733530,1772127048600,-150.0,0.00017891,2]
[406733531,1772127048608,-150.0,0.00017891,2]
[406733532,1772127048618,-150.0,0.00017892,2]
[406733533,1772127048627,-187.29970089,0.00017892,2]
[406733534,1772127048636,-339.21457322,0.00017892,2]
[406733535,1772127048645,-156.66979557,0.00017892,2]
[406733536,1772127048654,-150.0,0.00017892,2]
[406733537,1772127048664,-150.0,0.00017893,2]
[406733538,1772127048679,-150.0,0.00017893,2]
[406733539,1772127048688,-187.29970089,0.00017893,2]
[406733540,1772127048697,-339.21457322,0.00017893,2]
[406733541,1772127048707,-156.66979557,0.00017893,2]
[406733542,1772127048718,-150.0,0.00017894,2]
[406733543,1772127048727,-150.0,0.00017894,2]
[406733544,1772127048737,-150.0,0.00017894,2]
[406733545,1772127048747,-187.29970089,0.00017895,2]
[406733546,1772127048757,-339.21457322,0.00017895,2]
[406733547,1772127048766,-156.66979557,0.00017895,2]
[406733548,1772127048776,-150.0,0.00017895,2]
[406733549,1772127048785,-150.0,0.00017896,2]
[406733550,1772127048794,-150.0,0.00017896,2]
[406733551,1772127048803,-187.29970089,0.00017896,2]
[406733552,1772127048814,-339.21457322,0.00017896,2]
[406733553,1772127048823,-156.66979557,0.00017896,2]
[406733554,1772127048832,-150.0,0.00017896,2]
[406733555,1772127048841,-150.0,0.00017897,2]
[406733556,1772127048850,-187.29970089,0.00017898,2]
[406733557,1772127048859,-339.21457322,0.00017898,2]
[406733558,1772127048869,-156.66979557,0.00017898,2]
[406733559,1772127048878,-150.0,0.00017898,2]
[406733560,1772127048887,-150.0,0.00017898,2]
[406733561,1772127048897,-150.0,0.00017899,2]
[406733562,1772127048906,-150.0,0.00017899,2]
[406733563,1772127048915,-187.29970089,0.00017899,2]
[406733564,1772127048925,-339.21457322,0.00017899,2]
[406733565,1772127048934,-156.66979557,0.00017899,2]
[406733566,1772127048943,-150.0,0.00017899,2]
[406733567,1772127048952,-150.0,0.000179,2]
[406733568,1772127048962,-1060.57572309,0.000179,2]
[406733569,1772127048971,-995.28114407,0.000179,2]
[406733570,1772127048981,-25000.0,0.000179,3]
[406733571,1772127048990,-5000.0,0.000179,2]
[406733572,1772127048999,-740.47024428,0.000179,2]
[406733573,1772127049009,-1035.0,0.000179,6]
[406733574,1772127049018,-26419.17167689,0.000179,2]
[406733575,1772127049028,-196.32932638,0.000179,2]
[406733576,1772127049037,-3707.87300559,0.000179,2]
[406733577,1772127049046,-7273.0,0.000179,2]
[406733578,1772127049056,-187.29970089,0.000179,2]
[406733579,1772127049065,-339.21457322,0.000179,2]
[406733580,1772127049074,-156.66979557,0.000179,2]
[406733581,1772127049083,-150.0,0.000179,2]
[406733582,1772127049092,-150.0,0.00017901,2]
[406733583,1772127049102,-150.0,0.00017901,2]
[406733584,1772127049111,-187.29970089,0.00017902,2]
[406733585,1772127049120,-339.21457322,0.00017902,2]
[406733586,1772127049129,-156.66979557,0.00017902,2]
[406733587,1772127049138,-150.0,0.00017902,2]
[406733588,1772127049147,-150.0,0.00017902,2]
[406733589,1772127049157,-150.0,0.00017902,2]
[406733590,1772127049166,-150.0,0.00017902,2]
[406733591,1772127049175,-187.29970089,0.00017903,2]
[406733592,1772127049185,-339.21457322,0.00017903,2]
[406733593,1772127049194,-156.66979557,0.00017903,2]
[406733594,1772127049203,-150.0,0.00017903,2]
[406733595,1772127049212,-150.0,0.00017904,2]
[406733596,1772127049221,-150.0,0.00017904,2]
[406733597,1772127049230,-150.0,0.00017904,2]
[406733598,1772127049239,-187.29970089,0.00017905,2]
[406733599,1772127049248,-339.21457322,0.00017905,2]
[406733600,1772127049258,-156.66979557,0.00017905,2]
[406733601,1772127049267,-150.0,0.00017905,2]
[406733602,1772127049276,-150.0,0.00017905,2]
[406733603,1772127049285,-150.0,0.00017905,2]
[406733604,1772127049294,-150.0,0.00017906,2]
[406733605,1772127049303,-187.29970089,0.00017906,2]
[406733606,1772127049313,-339.21457322,0.00017906,2]
[406733607,1772127049322,-156.66979557,0.00017906,2]
[406733608,1772127049331,-150.0,0.00017906,2]
[406733609,1772127049340,-150.0,0.00017907,2]
[406733610,1772127049349,-187.29970089,0.00017907,2]
[406733611,1772127049358,-339.21457322,0.00017907,2]
[406733612,1772127049367,-156.66979557,0.00017907,2]
[406733613,1772127049376,-150.0,0.00017907,2]
[406733614,1772127049385,-150.0,0.00017908,2]
[406733615,1772127049393,-150.0,0.00017908,2]
[406733616,1772127049402,-187.29970089,0.00017909,2]
[406733617,1772127049411,-150.0,0.00017909,2]
[406733618,1772127049420,-339.21457322,0.00017909,2]
[406733619,1772127049429,-156.66979557,0.00017909,2]
[406733620,1772127049439,-150.0,0.00017909,2]
[406733621,1772127049448,-150.0,0.0001791,2]
[406733622,1772127049457,-187.29970089,0.0001791,2]
[406733623,1772127049466,-339.21457322,0.0001791,2]
[406733624,1772127049475,-156.66979557,0.0001791,2]
[406733625,1772127049484,-150.0,0.0001791,2]
[406733626,1772127049493,-150.0,0.00017911,2]
[406733627,1772127049502,-150.0,0.00017911,2]
[406733628,1772127049511,-150.0,0.00017911,2]
[406733629,1772127049520,-150.0,0.00017911,2]
[406733630,1772127049529,-150.0,0.00017911,2]
[406733631,1772127049538,-187.29970089,0.00017911,2]
[406733632,1772127049547,-339.21457322,0.00017911,2]
[406733633,1772127049556,-156.66979557,0.00017911,2]
[406733634,1772127049566,-150.0,0.00017912,2]
[406733635,1772127049575,-187.29970089,0.00017913,2]
[406733636,1772127049584,-339.21457322,0.00017913,2]
[406733637,1772127049593,-156.66979557,0.00017913,2]
[406733638,1772127049602,-150.0,0.00017913,2]
[406733639,1772127049612,-150.0,0.00017914,2]
[406733640,1772127049621,-187.29970089,0.00017914,2]
[406733641,1772127049631,-339.21457322,0.00017914,2]
[406733642,1772127049640,-156.66979557,0.00017914,2]
[406733643,1772127049650,-150.0,0.00017914,2]
[406733644,1772127049659,-150.0,0.00017915,2]
[406733645,1772127049673,-150.0,0.00017915,2]
[406733646,1772127049685,-150.0,0.00017915,2]
[406733647,1772127049694,-187.29970089,0.00017916,2]
[406733648,1772127049703,-339.21457322,0.00017916,2]
[406733649,1772127049715,-156.66979557,0.00017916,2]
[406733650,1772127049725,-150.0,0.00017916,2]
[406733651,1772127049734,-150.0,0.00017917,2]
[406733652,1772127049744,-150.0,0.00017917,2]
[406733653,1772127049753,-187.29970089,0.00017917,2]
[406733654,1772127049762,-339.21457322,0.00017917,2]
[406733655,1772127049771,-156.66979557,0.00017917,2]
[406733656,1772127049780,-150.0,0.00017917,2]
[406733657,1772127049790,-500.0,0.00017918,2]
[406733658,1772127049799,-150.0,0.00017918,2]
[406733659,1772127049809,-150.0,0.00017918,2]
[406733660,1772127049818,-150.0,0.00017918,2]
[406733661,1772127049828,-187.29970089,0.00017918,2]
[406733662,1772127049838,-339.21457322,0.00017918,2]
[406733663,1772127049847,-156.66979557,0.00017918,2]
[406733664,1772127049857,-150.0,0.00017919,2]
[406733665,1772127049866,-150.0,0.00017919,2]
[406733666,1772127049875,-150.0,0.0001792,2]
[406733667,1772127049884,-187.29970089,0.0001792,2]
[406733668,1772127049893,-339.21457322,0.0001792,2]
[406733669,1772127049902,-156.66979557,0.0001792,2]
[406733670,1772127049914,-150.0,0.0001792,2]
[406733671,1772127049925,-187.29970089,0.00017921,2]
[406733672,1772127049935,-339.21457322,0.00017921,2]
[406733673,1772127049945,-156.66979557,0.00017921,2]
[406733674,1772127049955,-150.0,0.00017921,2]
[406733675,1772127049966,-150.0,0.00017921,2]
[406733676,1772127049976,-150.0,0.00017922,2]
[406733677,1772127049986,-150.0,0.00017922,2]
[406733678,1772127049998,-150.0,0.00017922,2]
[406733679,1772127050007,-187.29970089,0.00017923,2]
[406733680,1772127050016,-339.21457322,0.00017923,2]
[406733681,1772127050026,-156.66979557,0.00017923,2]
[406733682,1772127050036,-150.0,0.00017923,2]
[406733683,1772127050046,-150.0,0.00017923,2]
[406733684,1772127050055,-150.0,0.00017923,2]
[406733685,1772127050071,-150.0,0.00017923,2]
[406733686,1772127050080,-187.29970089,0.00017924,2]
[406733687,1772127050089,-339.21457322,0.00017924,2]
[406733688,1772127050099,-156.66979557,0.00017924,2]
[406733689,1772127050108,-150.0,0.00017924,2]
[406733690,1772127050117,-150.0,0.00017924,2]
[406733691,1772127050126,-150.0,0.00017925,2]
[406733692,1772127050136,-187.29970089,0.00017925,2]
[406733693,1772127050145,-339.21457322,0.00017925,2]
[406733694,1772127050154,-156.66979557,0.00017925,2]
[406733695,1772127050163,-150.0,0.00017925,2]
[406733696,1772127050172,-150.0,0.00017926,2]
[406733697,1772127050182,-187.29970089,0.00017927,2]
[406733698,1772127050191,-339.21457322,0.00017927,2]
[406733699,1772127050200,-156.66979557,0.00017927,2]
[406733700,1772127050309,-150.0,0.00017927,2]
[406733701,1772127050319,-150.0,0.00017927,2]
[406733702,1772127050328,-150.0,0.00017927,2]
[406733703,1772127050338,-187.29970089,0.00017928,2]
[406733704,1772127050347,-339.21457322,0.00017928,2]
[406733705,1772127050357,-156.66979557,0.00017928,2]
[406733706,1772127050366,-150.0,0.00017928,2]
[406733707,1772127050376,-150.0,0.00017928,2]
[406733708,1772127050384,-150.0,0.00017929,2]
[406733709,1772127050394,-150.0,0.00017929,2]
[406733710,1772127050403,-150.0,0.00017929,2]
[406733711,1772127050412,-187.29970089,0.00017929,2]
[406733712,1772127050422,-339.21457322,0.00017929,2]
[406733713,1772127050431,-156.66979557,0.00017929,2]
[406733714,1772127050440,-150.0,0.00017929,2]
[406733715,1772127050450,-150.0,0.0001793,2]
[406733716,1772127050459,-187.29970089,0.00017931,2]
[406733717,1772127050468,-339.21457322,0.00017931,2]
[406733718,1772127050478,-156.66979557,0.00017931,2]
[406733719,1772127050486,-529.0,0.00017931,2]
[406733720,1772127050496,-150.0,0.00017932,2]
[406733721,1772127050506,-150.0,0.00017932,2]
[406733722,1772127050515,-150.0,0.00017932,2]
[406733723,1772127050524,-150.0,0.00017932,2]
[406733724,1772127050533,-150.0,0.00017932,2]
[406733725,1772127050542,-187.29970089,0.00017932,2]
[406733726,1772127050551,-339.21457322,0.00017932,2]
[406733727,1772127050560,-156.66979557,0.00017932,2]
[406733728,1772127050570,-150.0,0.00017933,2]
[406733729,1772127050579,-187.29970089,0.00017934,2]
[406733730,1772127050588,-339.21457322,0.00017934,2]
[406733731,1772127050597,-156.66979557,0.00017934,2]
[406733732,1772127050606,-150.0,0.00017934,2]
[406733733,1772127050615,-150.0,0.00017934,2]
[406733734,1772127050624,-150.0,0.00017934,2]
[406733735,1772127050633,-150.0,0.00017934,2]
[406733736,1772127050642,-150.0,0.00017935,2]
[406733737,1772127050651,-150.0,0.00017935,2]
[406733738,1772127050661,-187.29970089,0.00017935,2]
[406733739,1772127050674,-339.21457322,0.00017935,2]
[406733740,1772127050683,-156.66979557,0.00017935,2]
[406733741,1772127050693,-150.0,0.00017936,2]
[406733742,1772127050702,-150.0,0.00017936,2]
[406733743,1772127050714,-187.29970089,0.00017936,2]
[406733744,1772127050723,-339.21457322,0.00017936,2]
[406733745,1772127050732,-156.66979557,0.00017936,2]